[Event "*** Qualifier 3: Titled Tuesday 3|2 Blitz"]
[Site "Chess.com"]
[Date "2017.04.18"]
[Round "10"]
[White "stefanodinn"]
[Black "Wolverine_master"]
[Result "1-0"]
[WhiteElo "2184"]
[BlackElo "1982"]
[TimeControl "180+2"]
[EndTime "15:17:20 PDT"]
[Termination "stefanodinn won on time"]

1. Nf3 {[%clk 0:03:01.1]} 1... Nf6 {[%clk 0:03:00.7]} 2. c4 {[%clk 0:03:01.6]}
2... g6 {[%clk 0:02:59.7]} 3. b3 {[%clk 0:02:59.6]} 3... Bg7 {[%clk 0:03:01.1]}
4. Bb2 {[%clk 0:03:00.6]} 4... O-O {[%clk 0:03:02.7]} 5. g3 {[%clk 0:03:01.6]}
5... c5 {[%clk 0:03:04.3]} 6. Bg2 {[%clk 0:03:01.9]} 6... d5 {[%clk 0:03:05.9]}
7. cxd5 {[%clk 0:03:02.5]} 7... Nxd5 {[%clk 0:02:58.9]} 8. Bxg7 {[%clk
0:03:02.4]} 8... Kxg7 {[%clk 0:03:00.8]} 9. O-O {[%clk 0:03:02.3]} 9... Nc6
{[%clk 0:03:01.8]} 10. Qc1 {[%clk 0:03:01.3]} 10... e5 {[%clk 0:03:02.3]} 11.
Qxc5 {[%clk 0:02:59.7]} 11... Be6 {[%clk 0:02:59.5]} 12. Nc3 {[%clk 0:02:51]}
12... Rc8 {[%clk 0:02:55.7]} 13. Qb5 {[%clk 0:02:32.1]} 13... Qb6 {[%clk
0:02:28.8]} 14. Qxb6 {[%clk 0:02:28.9]} 14... axb6 {[%clk 0:02:28]} 15. Ng5
{[%clk 0:01:59.4]} 15... Nxc3 {[%clk 0:02:22.4]} 16. Nxe6+ {[%clk 0:01:58.9]}
16... fxe6 {[%clk 0:02:23.4]} 17. dxc3 {[%clk 0:02:00.5]} 17... Rc7 {[%clk
0:02:24.8]} 18. Rfd1 {[%clk 0:01:58.8]} 18... b5 {[%clk 0:02:25.4]} 19. Rd6
{[%clk 0:01:57.7]} 19... Kf6 {[%clk 0:02:21.7]} 20. e3 {[%clk 0:01:44.9]} 20...
Ra8 {[%clk 0:02:06.9]} 21. Bh3 {[%clk 0:01:33.1]} 21... Re7 {[%clk 0:01:40.5]}
22. a4 {[%clk 0:01:31.9]} 22... bxa4 {[%clk 0:01:36.7]} 23. Rxa4 {[%clk
0:01:32.1]} 23... Rxa4 {[%clk 0:01:27.4]} 24. bxa4 {[%clk 0:01:32.4]} 24... e4
{[%clk 0:01:28.8]} 25. c4 {[%clk 0:01:14.7]} 25... Ke5 {[%clk 0:01:27.6]} 26. c5
{[%clk 0:01:15.3]} 26... Nb4 {[%clk 0:01:18.7]} 27. Bf1 {[%clk 0:01:05.8]} 27...
Rc7 {[%clk 0:01:10.1]} 28. Bc4 {[%clk 0:00:34.2]} 28... Re7 {[%clk 0:00:32.2]}
29. a5 {[%clk 0:00:27.2]} 29... Nd3 {[%clk 0:00:20.7]} 30. Bxd3 {[%clk 0:00:24]}
30... exd3 {[%clk 0:00:22.6]} 31. Rxd3 {[%clk 0:00:25.1]} 31... Rc7 {[%clk
0:00:24.1]} 32. Rb3 {[%clk 0:00:20.1]} 32... Kd5 {[%clk 0:00:24.3]} 33. Rb5
{[%clk 0:00:14.3]} 33... h5 {[%clk 0:00:22.6]} 34. h4 {[%clk 0:00:14.3]} 34...
Kc4 {[%clk 0:00:18.1]} 35. Rb6 {[%clk 0:00:13.8]} 35... Kd5 {[%clk 0:00:12.3]}
36. Rd6+ {[%clk 0:00:12.1]} 36... Ke5 {[%clk 0:00:10.2]} 37. Rb6 {[%clk
0:00:13]} 37... Rxc5 {[%clk 0:00:10.1]} 38. Rxb7 {[%clk 0:00:13.3]} 38... Rxa5
{[%clk 0:00:11.1]} 39. Kg2 {[%clk 0:00:14.5]} 39... Ra2 {[%clk 0:00:10.3]} 40.
Kf3 {[%clk 0:00:15.1]} 40... Ra5 {[%clk 0:00:09.9]} 41. Rf7 {[%clk 0:00:14.4]}
41... Rb5 {[%clk 0:00:10.1]} 42. Rf8 {[%clk 0:00:11.9]} 42... Rb4 {[%clk
0:00:08.8]} 43. Ke2 {[%clk 0:00:12.3]} 43... Ke4 {[%clk 0:00:08.8]} 44. Rf4+
{[%clk 0:00:12]} 44... Ke5 {[%clk 0:00:04.3]} 45. Rxb4 {[%clk 0:00:10.7]} 1-0

[Event "*** Qualifier 3: Titled Tuesday 3|2 Blitz"]
[Site "Chess.com"]
[Date "2017.04.18"]
[Round "10"]
[White "iturrizaga"]
[Black "daro94"]
[Result "0-1"]
[WhiteElo "2656"]
[BlackElo "2759"]
[TimeControl "180+2"]
[EndTime "15:17:35 PDT"]
[Termination "daro94 won by resignation"]

1. Nf3 {[%clk 0:02:59.5]} 1... Nf6 {[%clk 0:03:00.3]} 2. c4 {[%clk 0:03:00.5]}
2... b6 {[%clk 0:03:00.8]} 3. g3 {[%clk 0:03:01.6]} 3... Bb7 {[%clk 0:03:02.3]}
4. Bg2 {[%clk 0:03:03.2]} 4... c5 {[%clk 0:03:03.7]} 5. O-O {[%clk 0:03:03.9]}
5... g6 {[%clk 0:03:05.2]} 6. b3 {[%clk 0:03:04.4]} 6... Bg7 {[%clk 0:03:06.6]}
7. Bb2 {[%clk 0:03:06]} 7... O-O {[%clk 0:03:08.2]} 8. e3 {[%clk 0:03:05.4]}
8... d6 {[%clk 0:02:57.6]} 9. Qe2 {[%clk 0:03:06.3]} 9... Nbd7 {[%clk
0:02:56.8]} 10. d4 {[%clk 0:03:07.1]} 10... e6 {[%clk 0:02:54.5]} 11. Rd1 {[%clk
0:03:06.1]} 11... Qe7 {[%clk 0:02:53.4]} 12. Nc3 {[%clk 0:03:07.2]} 12... Ne4
{[%clk 0:02:51.4]} 13. Rac1 {[%clk 0:03:05]} 13... Nxc3 {[%clk 0:02:51.3]} 14.
Bxc3 {[%clk 0:03:05.8]} 14... Rad8 {[%clk 0:02:32.6]} 15. e4 {[%clk 0:02:55.8]}
15... e5 {[%clk 0:02:16]} 16. d5 {[%clk 0:02:50.6]} 16... Bc8 {[%clk 0:02:07.9]}
17. Bh3 {[%clk 0:02:44.5]} 17... Bh6 {[%clk 0:01:53]} 18. Rb1 {[%clk 0:02:11.7]}
18... Rde8 {[%clk 0:01:36.8]} 19. Re1 {[%clk 0:02:02.8]} 19... Qd8 {[%clk
0:01:36.7]} 20. Nh4 {[%clk 0:01:56.5]} 20... Bg5 {[%clk 0:01:36.1]} 21. Ng2
{[%clk 0:01:56.6]} 21... Nf6 {[%clk 0:01:08.1]} 22. Bxc8 {[%clk 0:01:54.7]}
22... Qxc8 {[%clk 0:01:10]} 23. h4 {[%clk 0:01:24.8]} 23... Bh6 {[%clk
0:01:07.9]} 24. Qf3 {[%clk 0:01:26.2]} 24... Ng4 {[%clk 0:01:01.6]} 25. Rbd1
{[%clk 0:00:59.2]} 25... a6 {[%clk 0:00:46.7]} 26. Bd2 {[%clk 0:00:58.4]} 26...
Bxd2 {[%clk 0:00:34]} 27. Rxd2 {[%clk 0:01:00.3]} 27... f5 {[%clk 0:00:33.5]}
28. exf5 {[%clk 0:00:56.5]} 28... gxf5 {[%clk 0:00:35.4]} 29. Rde2 {[%clk
0:00:51.6]} 29... b5 {[%clk 0:00:28.9]} 30. Qc3 {[%clk 0:00:45.3]} 30... Nf6
{[%clk 0:00:20.7]} 31. Qd3 {[%clk 0:00:42]} 31... bxc4 {[%clk 0:00:20.5]} 32.
bxc4 {[%clk 0:00:41.6]} 32... Kh8 {[%clk 0:00:13.9]} 33. Ne3 {[%clk 0:00:31.8]}
33... f4 {[%clk 0:00:09.2]} 34. Ng2 {[%clk 0:00:12.1]} 34... Qh3 {[%clk
0:00:10.5]} 35. Nxf4 {[%clk 0:00:04.2]} 35... exf4 {[%clk 0:00:10.9]} 36. Rxe8
{[%clk 0:00:05.9]} 36... Nxe8 {[%clk 0:00:08.1]} 37. Qc3+ {[%clk 0:00:05.8]}
37... Ng7 {[%clk 0:00:07.4]} 38. Re7 {[%clk 0:00:06.4]} 38... Qg4 {[%clk
0:00:08.9]} 39. h5 {[%clk 0:00:03.1]} 39... fxg3 {[%clk 0:00:08.5]} 40. fxg3
{[%clk 0:00:04.4]} 40... h6 {[%clk 0:00:09]} 41. Qe3 {[%clk 0:00:04.8]} 41...
Qxh5 {[%clk 0:00:06.5]} 42. Rd7 {[%clk 0:00:03.7]} 42... Qd1+ {[%clk 0:00:07.8]}
43. Kh2 {[%clk 0:00:04.1]} 43... Qh5+ {[%clk 0:00:08.9]} 44. Kg1 {[%clk
0:00:05]} 44... Qg6 {[%clk 0:00:08]} 45. Kg2 {[%clk 0:00:04.6]} 45... Nf5 {[%clk
0:00:06.3]} 46. Qf4 {[%clk 0:00:03.6]} 46... Rg8 {[%clk 0:00:06.4]} 47. g4
{[%clk 0:00:02.6]} 47... Qxg4+ {[%clk 0:00:07.1]} 48. Qxg4 {[%clk 0:00:04]}
48... Rxg4+ {[%clk 0:00:09]} 49. Kf3 {[%clk 0:00:05.4]} 49... Rxc4 {[%clk
0:00:10.7]} 0-1

[Event "*** Qualifier 3: Titled Tuesday 3|2 Blitz"]
[Site "Chess.com"]
[Date "2017.04.18"]
[Round "10"]
[White "Robin-Side"]
[Black "MyleneFarmer"]
[Result "0-1"]
[WhiteElo "2291"]
[BlackElo "2323"]
[TimeControl "180+2"]
[EndTime "15:17:38 PDT"]
[Termination "MyleneFarmer won by resignation"]

1. e4 {[%clk 0:03:02]} 1... c5 {[%clk 0:03:00.6]} 2. Nf3 {[%clk 0:03:02.5]} 2...
d6 {[%clk 0:03:02]} 3. d4 {[%clk 0:03:02.1]} 3... cxd4 {[%clk 0:03:03.9]} 4.
Nxd4 {[%clk 0:03:03.3]} 4... Nf6 {[%clk 0:03:05.4]} 5. Nc3 {[%clk 0:03:02.7]}
5... g6 {[%clk 0:03:07]} 6. Be2 {[%clk 0:03:03.5]} 6... Bg7 {[%clk 0:03:08.1]}
7. O-O {[%clk 0:03:04.1]} 7... O-O {[%clk 0:03:08.3]} 8. Bg5 {[%clk 0:03:04.6]}
8... Nc6 {[%clk 0:03:09.3]} 9. Nb3 {[%clk 0:03:05]} 9... Be6 {[%clk 0:03:03.3]}
10. f4 {[%clk 0:02:56.1]} 10... a5 {[%clk 0:02:49.4]} 11. a4 {[%clk 0:02:50.6]}
11... Nb4 {[%clk 0:02:48.9]} 12. Kh1 {[%clk 0:02:43.6]} 12... Qb6 {[%clk
0:02:44]} 13. Ra3 {[%clk 0:02:34.6]} 13... Rfd8 {[%clk 0:02:25.7]} 14. Bf3
{[%clk 0:02:34.5]} 14... d5 {[%clk 0:02:22.7]} 15. e5 {[%clk 0:02:27.4]} 15...
Ne4 {[%clk 0:02:19.5]} 16. Bxe7 {[%clk 0:02:19.6]} 16... Rd7 {[%clk 0:02:09.7]}
17. Bh4 {[%clk 0:02:05.5]} 17... Rc8 {[%clk 0:01:58.2]} 18. Nd4 {[%clk
0:02:00.5]} 18... Rc4 {[%clk 0:01:43.8]} 19. Nxe6 {[%clk 0:01:57.1]} 19... Qxe6
{[%clk 0:01:38.6]} 20. Bg4 {[%clk 0:01:53]} 20... Qc6 {[%clk 0:01:15.7]} 21.
Bxd7 {[%clk 0:01:52.3]} 21... Qxd7 {[%clk 0:01:17.6]} 22. Nxe4 {[%clk
0:01:48.4]} 22... Rxe4 {[%clk 0:01:17.9]} 23. Be1 {[%clk 0:01:38.4]} 23... Nc6
{[%clk 0:01:17.1]} 24. Rd3 {[%clk 0:01:34.9]} 24... Ne7 {[%clk 0:01:11.4]} 25.
Bxa5 {[%clk 0:01:30.2]} 25... Qxa4 {[%clk 0:01:11.7]} 26. Bd2 {[%clk 0:01:18.9]}
26... Qc6 {[%clk 0:01:03.4]} 27. Bc3 {[%clk 0:01:09.9]} 27... h5 {[%clk
0:01:01.9]} 28. Rd4 {[%clk 0:01:05.4]} 28... Nf5 {[%clk 0:00:59.5]} 29. Rxe4
{[%clk 0:01:04]} 29... dxe4 {[%clk 0:01:01.4]} 30. Qd8+ {[%clk 0:00:57.4]} 30...
Kh7 {[%clk 0:01:02.3]} 31. Rd1 {[%clk 0:00:44.9]} 31... e3 {[%clk 0:01:00.2]}
32. Qd3 {[%clk 0:00:18.2]} 32... h4 {[%clk 0:00:38.8]} 33. h3 {[%clk 0:00:13.2]}
33... Bh6 {[%clk 0:00:32.6]} 34. Qd5 {[%clk 0:00:07.9]} 34... e2 {[%clk
0:00:30.4]} 35. Qxf7+ {[%clk 0:00:08.2]} 35... Bg7 {[%clk 0:00:31]} 36. Re1
{[%clk 0:00:08.8]} 36... Ng3+ {[%clk 0:00:26.5]} 37. Kh2 {[%clk 0:00:08.3]}
37... Nf1+ {[%clk 0:00:27.7]} 38. Kh1 {[%clk 0:00:06.2]} 38... Ng3+ {[%clk
0:00:23.3]} 39. Kh2 {[%clk 0:00:04.9]} 39... Nf1+ {[%clk 0:00:17.9]} 40. Kh1
{[%clk 0:00:05.7]} 40... Ng3+ {[%clk 0:00:18.5]} 41. Kh2 {[%clk 0:00:06.6]}
41... Nf1+ {[%clk 0:00:19.5]} 42. Kh1 {[%clk 0:00:03.6]} 42... Kh6 {[%clk
0:00:11]} 43. e6 {[%clk 0:00:02.2]} 43... Bxc3 {[%clk 0:00:12]} 44. bxc3 {[%clk
0:00:03.1]} 44... Qxc3 {[%clk 0:00:13.2]} 45. Qf8+ {[%clk 0:00:04]} 45... Kh7
{[%clk 0:00:12.3]} 46. Rxe2 {[%clk 0:00:04.3]} 46... Ng3+ {[%clk 0:00:13]} 47.
Kh2 {[%clk 0:00:05.3]} 47... Nxe2 {[%clk 0:00:11.8]} 48. Qf7+ {[%clk 0:00:06.1]}
48... Qg7 {[%clk 0:00:11.7]} 49. Qe8 {[%clk 0:00:04.8]} 49... Qf6 {[%clk
0:00:12.1]} 50. Qf7+ {[%clk 0:00:04.7]} 50... Qxf7 {[%clk 0:00:13.1]} 51. exf7
{[%clk 0:00:06.1]} 51... Kg7 {[%clk 0:00:14.7]} 52. f8=Q+ {[%clk 0:00:06.1]}
52... Kxf8 {[%clk 0:00:16]} 0-1

[Event "*** Qualifier 3: Titled Tuesday 3|2 Blitz"]
[Site "Chess.com"]
[Date "2017.04.18"]
[Round "10"]
[White "tigra"]
[Black "Roachelley"]
[Result "0-1"]
[WhiteElo "2589"]
[BlackElo "2184"]
[TimeControl "180+2"]
[EndTime "15:18:09 PDT"]
[Termination "Roachelley won by resignation"]

1. e4 {[%clk 0:03:01.7]} 1... c5 {[%clk 0:02:59.9]} 2. Nf3 {[%clk 0:03:01.6]}
2... d6 {[%clk 0:03:00.5]} 3. d4 {[%clk 0:03:03.3]} 3... cxd4 {[%clk 0:03:01.3]}
4. Nxd4 {[%clk 0:03:05.2]} 4... Nf6 {[%clk 0:03:01.4]} 5. Nc3 {[%clk 0:03:06.6]}
5... a6 {[%clk 0:03:02.1]} 6. Bg5 {[%clk 0:03:05.2]} 6... Nbd7 {[%clk
0:03:01.3]} 7. f4 {[%clk 0:03:01.7]} 7... Qc7 {[%clk 0:02:58.9]} 8. Qe2 {[%clk
0:02:58.5]} 8... e6 {[%clk 0:02:47.8]} 9. O-O-O {[%clk 0:02:55.8]} 9... Be7
{[%clk 0:02:43.2]} 10. f5 {[%clk 0:02:46.3]} 10... e5 {[%clk 0:02:35.8]} 11. Nf3
{[%clk 0:02:37.1]} 11... b5 {[%clk 0:02:34.5]} 12. g4 {[%clk 0:02:32.7]} 12...
Bb7 {[%clk 0:02:34.1]} 13. Bxf6 {[%clk 0:02:32.3]} 13... Nxf6 {[%clk 0:02:31.3]}
14. g5 {[%clk 0:02:33.4]} 14... Nd7 {[%clk 0:02:26.8]} 15. h4 {[%clk 0:02:27.6]}
15... Rc8 {[%clk 0:02:23.7]} 16. Kb1 {[%clk 0:02:20.8]} 16... Nb6 {[%clk
0:02:11.2]} 17. f6 {[%clk 0:02:02.6]} 17... gxf6 {[%clk 0:02:08.6]} 18. Bh3
{[%clk 0:02:03.4]} 18... Rd8 {[%clk 0:01:50]} 19. Qf2 {[%clk 0:02:04.2]} 19...
b4 {[%clk 0:01:44.6]} 20. Nd5 {[%clk 0:02:04.9]} 20... Bxd5 {[%clk 0:01:38.7]}
21. exd5 {[%clk 0:02:06.8]} 21... Nc4 {[%clk 0:01:35.6]} 22. Qe2 {[%clk
0:01:49.2]} 22... Rb8 {[%clk 0:01:24.5]} 23. Qe4 {[%clk 0:01:47.6]} 23... Na3+
{[%clk 0:01:08.4]} 24. Kc1 {[%clk 0:01:48]} 24... Nc4 {[%clk 0:01:00.5]} 25.
Rhg1 {[%clk 0:01:39.4]} 25... Rb5 {[%clk 0:00:46.6]} 26. gxf6 {[%clk 0:01:36.2]}
26... Bxf6 {[%clk 0:00:48.5]} 27. Qf5 {[%clk 0:01:37.6]} 27... Ne3 {[%clk
0:00:46.6]} 28. Qe4 {[%clk 0:01:38.8]} 28... Nxd1 {[%clk 0:00:45.2]} 29. Rxd1
{[%clk 0:01:40.7]} 29... Rc5 {[%clk 0:00:42.9]} 30. Kb1 {[%clk 0:01:40.7]} 30...
Rc4 {[%clk 0:00:39.9]} 31. Qe2 {[%clk 0:01:38]} 31... Rg8 {[%clk 0:00:37.5]} 32.
Bf5 {[%clk 0:01:38.4]} 32... h6 {[%clk 0:00:34.5]} 33. Bd3 {[%clk 0:01:35.2]}
33... Rf4 {[%clk 0:00:34.3]} 34. Bxa6 {[%clk 0:01:35.2]} 34... Rg3 {[%clk
0:00:34.9]} 35. Nd2 {[%clk 0:01:33.7]} 35... Kf8 {[%clk 0:00:33.1]} 36. Bd3
{[%clk 0:01:30.7]} 36... Qb6 {[%clk 0:00:31.5]} 37. Ne4 {[%clk 0:01:28.5]} 37...
Rg1 {[%clk 0:00:27.6]} 38. h5 {[%clk 0:01:13.8]} 38... Be7 {[%clk 0:00:25.9]}
39. b3 {[%clk 0:01:06.6]} 39... Rxd1+ {[%clk 0:00:26.7]} 40. Qxd1 {[%clk
0:01:07.4]} 40... Qe3 {[%clk 0:00:28.3]} 41. Nd2 {[%clk 0:01:06.8]} 41... Rf2
{[%clk 0:00:28.9]} 42. Nc4 {[%clk 0:01:07.5]} 42... Qf3 {[%clk 0:00:28]} 43. Qe1
{[%clk 0:01:07.4]} 43... f5 {[%clk 0:00:24.9]} 44. Nb6 {[%clk 0:00:43.2]} 44...
e4 {[%clk 0:00:24.1]} 45. Bb5 {[%clk 0:00:44.8]} 45... e3 {[%clk 0:00:21.9]} 46.
Qxb4 {[%clk 0:00:42.5]} 46... e2 {[%clk 0:00:21.6]} 47. Nd7+ {[%clk 0:00:43.6]}
47... Kf7 {[%clk 0:00:21.5]} 48. Kb2 {[%clk 0:00:40.6]} 48... Qe3 {[%clk
0:00:18.7]} 49. Qe1 {[%clk 0:00:39.9]} 49... Bh4 {[%clk 0:00:13.9]} 50. Ka3
{[%clk 0:00:35.5]} 50... Rh2 {[%clk 0:00:11.8]} 51. Qb4 {[%clk 0:00:31.7]} 51...
e1=Q {[%clk 0:00:11.6]} 52. Qxd6 {[%clk 0:00:33.6]} 52... Be7 {[%clk 0:00:09.8]}
53. Qxe7+ {[%clk 0:00:31.1]} 53... Kxe7 {[%clk 0:00:11.7]} 54. Ka4 {[%clk
0:00:30.6]} 54... Qa7+ {[%clk 0:00:11.6]} 0-1

[Event "*** Qualifier 3: Titled Tuesday 3|2 Blitz"]
[Site "Chess.com"]
[Date "2017.04.18"]
[Round "10"]
[White "Cryptochess"]
[Black "SabinaFoisor"]
[Result "1-0"]
[WhiteElo "2484"]
[BlackElo "2275"]
[TimeControl "180+2"]
[EndTime "15:18:18 PDT"]
[Termination "Cryptochess won by resignation"]

1. e4 {[%clk 0:03:02]} 1... e5 {[%clk 0:03:00]} 2. Nf3 {[%clk 0:03:02.3]} 2...
Nc6 {[%clk 0:03:00.5]} 3. Bc4 {[%clk 0:03:04]} 3... Bc5 {[%clk 0:03:00.7]} 4. c3
{[%clk 0:03:05.2]} 4... Nf6 {[%clk 0:03:00.5]} 5. d3 {[%clk 0:03:06.9]} 5... O-O
{[%clk 0:02:58.2]} 6. a4 {[%clk 0:03:08.5]} 6... a6 {[%clk 0:02:56.5]} 7. Nbd2
{[%clk 0:03:09.4]} 7... d6 {[%clk 0:02:56.5]} 8. Nf1 {[%clk 0:03:10.7]} 8... Be6
{[%clk 0:02:55.9]} 9. Bb3 {[%clk 0:02:35.5]} 9... d5 {[%clk 0:02:51.1]} 10. exd5
{[%clk 0:02:34.5]} 10... Bxd5 {[%clk 0:02:46.9]} 11. Bc2 {[%clk 0:02:23.1]}
11... e4 {[%clk 0:02:46.5]} 12. dxe4 {[%clk 0:02:05]} 12... Bxe4 {[%clk
0:02:48.4]} 13. Qxd8 {[%clk 0:01:55.5]} 13... Raxd8 {[%clk 0:02:48]} 14. Bxe4
{[%clk 0:01:57.2]} 14... Nxe4 {[%clk 0:02:47.3]} 15. Be3 {[%clk 0:01:58.8]}
15... Rfe8 {[%clk 0:02:45.9]} 16. Ke2 {[%clk 0:01:52.8]} 16... f5 {[%clk
0:02:44.3]} 17. g3 {[%clk 0:01:32.6]} 17... g5 {[%clk 0:02:38.6]} 18. Rg1 {[%clk
0:01:07.6]} 18... h6 {[%clk 0:02:35.6]} 19. h4 {[%clk 0:00:59.4]} 19... g4
{[%clk 0:02:30.1]} 20. Ne1 {[%clk 0:00:56.4]} 20... Nxf2 {[%clk 0:02:18.7]} 21.
Nc2 {[%clk 0:00:39.8]} 21... Nh3 {[%clk 0:01:56.6]} 22. Rh1 {[%clk 0:00:28.4]}
22... f4 {[%clk 0:01:55.4]} 23. gxf4 {[%clk 0:00:27.1]} 23... Nxf4+ {[%clk
0:01:54.6]} 24. Kf2 {[%clk 0:00:28.8]} 24... Nd3+ {[%clk 0:01:47.7]} 25. Kg3
{[%clk 0:00:29.7]} 25... Bd6+ {[%clk 0:01:40.2]} 26. Kxg4 {[%clk 0:00:26]} 26...
Kh7 {[%clk 0:01:38.6]} 27. Rd1 {[%clk 0:00:10.6]} 27... Nxb2 {[%clk 0:01:35.2]}
28. Rd5 {[%clk 0:00:11.3]} 28... Nxa4 {[%clk 0:01:30.4]} 29. Rh5 {[%clk
0:00:11.5]} 29... Ne5+ {[%clk 0:01:30.1]} 30. Kh3 {[%clk 0:00:11.4]} 30... Nf7
{[%clk 0:01:30.1]} 31. Bd4 {[%clk 0:00:10.5]} 31... Be5 {[%clk 0:01:27.5]} 32.
Nfe3 {[%clk 0:00:09.3]} 32... Kg6 {[%clk 0:01:10.1]} 33. Rf5 {[%clk 0:00:03.2]}
33... Bxd4 {[%clk 0:01:09.6]} 34. cxd4 {[%clk 0:00:05.1]} 34... Nd6 {[%clk
0:00:55.2]} 35. Rg1+ {[%clk 0:00:06.5]} 35... Kh7 {[%clk 0:00:56.1]} 36. Rf6
{[%clk 0:00:08]} 36... Rf8 {[%clk 0:00:56.3]} 37. Rfg6 {[%clk 0:00:08.9]} 37...
Rf3+ {[%clk 0:00:50.4]} 38. Kh2 {[%clk 0:00:09.1]} 38... Rf2+ {[%clk 0:00:46.4]}
39. Kh1 {[%clk 0:00:09]} 39... Rd7 {[%clk 0:00:26.5]} 40. Nd5 {[%clk 0:00:05.8]}
40... Nb6 {[%clk 0:00:20.4]} 41. Nf6+ {[%clk 0:00:05.3]} 41... Rxf6 {[%clk
0:00:21.9]} 42. Rxf6 {[%clk 0:00:07.2]} 42... Nd5 {[%clk 0:00:21.9]} 43. Rf3
{[%clk 0:00:07.1]} 43... a5 {[%clk 0:00:22.8]} 44. Ne3 {[%clk 0:00:08]} 44...
Nxe3 {[%clk 0:00:23]} 45. Rxe3 {[%clk 0:00:09.9]} 45... a4 {[%clk 0:00:24.4]}
46. Kh2 {[%clk 0:00:06.5]} 46... b5 {[%clk 0:00:25.5]} 47. Rb1 {[%clk
0:00:06.8]} 47... c6 {[%clk 0:00:24.9]} 48. Re6 {[%clk 0:00:07.9]} 48... a3
{[%clk 0:00:24.4]} 49. Rb3 {[%clk 0:00:04.6]} 49... Ra7 {[%clk 0:00:20.9]} 50.
Re1 {[%clk 0:00:04.6]} 50... Nc4 {[%clk 0:00:19.2]} 51. Ra1 {[%clk 0:00:05.8]}
51... Ra4 {[%clk 0:00:18.3]} 52. d5 {[%clk 0:00:06.9]} 52... cxd5 {[%clk
0:00:19.1]} 53. Rxb5 {[%clk 0:00:08.3]} 53... d4 {[%clk 0:00:20.2]} 54. Rd5
{[%clk 0:00:09.6]} 54... Ne3 {[%clk 0:00:19.6]} 55. Rd6 {[%clk 0:00:08.9]} 55...
Nf5 {[%clk 0:00:19.5]} 56. Rd7+ {[%clk 0:00:09.8]} 56... Kg6 {[%clk 0:00:20.1]}
57. Kh3 {[%clk 0:00:11.4]} 57... Kh5 {[%clk 0:00:20.5]} 58. Rd5 {[%clk 0:00:12]}
58... Kg6 {[%clk 0:00:20.2]} 59. Rg1+ {[%clk 0:00:13.6]} 59... Kf6 {[%clk
0:00:18.8]} 60. Rf1 {[%clk 0:00:15.2]} 60... a2 {[%clk 0:00:18.3]} 61. Rdxf5+
{[%clk 0:00:10]} 61... Kg6 {[%clk 0:00:17.7]} 62. h5+ {[%clk 0:00:10.5]} 62...
Kg7 {[%clk 0:00:15.7]} 63. Rf7+ {[%clk 0:00:12.1]} 1-0